bitfinex-derivatives/quotes_ETHF0:USTF0_20251013
["timestamp","ask_amount","ask_price","bid_price","bid_amount"]
[1760365502757,2.3746,4121.5,4121.4,0.265]
[1760365503053,2.37691863,4121.5,4121.4,0.26693702]
[1760365504150,2.37691863,4121.5,4121.4,0.00193702]
[1760365504353,2.37691863,4121.5,4121.4,0.26693702]
[1760365505353,1.09096,4121.1,4119.9,0.43651]
[1760365505551,2.3746,4120.1,4120.0,0.265]
[1760365505944,0.9227,4120.2,4119.8,3.64431]
[1760365505945,2.3746,4119.9,4119.8,3.2078]
[1760365506156,2.3746,4119.9,4119.8,0.26798228]
[1760365506355,1.35925,4119.5,4119.3,3.2078]
[1760365506553,2.3746,4119.4,4119.3,3.2078]
[1760365506753,5.50004514,4119.4,4118.8,3.2078]
[1760365506949,2.3746,4119.0,4118.9,0.265]
[1760365507254,2.3746,4119.0,4116.9,1.29150378]
[1760365507255,3.2973,4117.4,4116.8,3.2078]
[1760365507558,3.30001503,4117.4,4117.3,0.43678]
[1760365507749,3.30001503,4117.4,4117.3,3.64458]
[1760365507946,3.30001503,4117.4,4117.2,0.43679]
[1760365507947,0.92541503,4117.4,4117.2,0.43679]
[1760365508150,0.92541503,4117.4,4117.3,0.265]
[1760365508657,0.43678,4117.3,4116.8,3.20955183]
[1760365508856,2.3746,4117.3,4116.8,0.00175183]
[1760365509062,2.81142,4117.0,4116.9,0.264]
[1760365509656,2.3746,4117.0,4116.9,0.264]
[1760365510452,0.92541503,4117.4,4116.8,3.20955183]
[1760365510655,0.43685,4116.7,4116.3,3.64468]
[1760365510950,2.3746,4116.6,4116.3,3.2078]
[1760365511156,0.9227,4116.0,4115.8,3.2078]
[1760365511356,0.9227,4116.0,4115.9,0.70093]
[1760365511759,3.2973,4116.0,4115.9,0.70314818]
[1760365512054,2.3746,4115.9,4115.3,3.2078]
[1760365512353,4.12304081,4116.0,4113.7,1.0929]
[1760365512354,1.3597,4115.3,4115.2,0.264]
[1760365512560,0.9227,4115.3,4115.2,0.264]
[1760365513054,3.2973,4115.3,4115.2,0.26585308]
[1760365513256,0.43712,4114.2,4113.3,3.2078]
[1760365513453,1.0926,4114.9,4113.3,3.2078]
[1760365513454,2.3746,4113.8,4113.4,0.264]
[1760365513750,0.43718,4113.6,4113.3,3.2078]
[1760365513949,2.3746,4113.6,4113.5,0.264]
[1760365514149,2.37698691,4113.6,4113.5,0.2667466]
[1760365514347,5.54132661,4113.6,4113.5,0.0027466]
[1760365514550,5.54132661,4113.6,4113.5,0.2640466]
[1760365514751,3.16672661,4113.6,4113.5,4.66e-05]
[1760365515355,0.00238691,4113.6,4113.5,4.66e-05]
[1760365515857,3.5981193,4113.6,4113.5,4.66e-05]
[1760365516356,3.1609493,4113.6,4112.8,0.02431434]
[1760365516559,1.33122,4113.2,4112.8,0.02431434]
[1760365516865,5.51313685,4113.1,4112.8,0.28831434]
[1760365517053,2.3648,4113.0,4112.8,0.72556434]
[1760365517358,2.3648,4113.0,4112.8,0.7273994]
[1760365517555,3.2588,4113.2,4113.1,0.43723]
[1760365517760,3.2588,4113.2,4113.1,0.70123]
[1760365518056,2.3648,4113.1,4113.0,3.2078]
[1760365518251,2.36718691,4113.6,4113.5,0.43719]
[1760365518559,0.00238691,4113.6,4113.5,5.34249]
[1760365518760,2.36718691,4113.6,4113.5,3.2078]
[1760365518952,2.36718691,4113.6,4113.5,3.4718]
[1760365519151,0.00238691,4113.6,4113.5,3.4718]
[1760365519647,2.36718691,4113.6,4113.5,3.4718]
[1760365519852,2.36718691,4113.6,4113.4,0.43719]
[1760365519853,0.00238691,4113.6,4113.4,0.43719]
[1760365520055,0.894,4113.2,4112.9,3.2078]
[1760365520251,0.43725,4113.0,4112.8,0.0261494]
[1760365520561,5.46422225,4112.9,4112.8,0.0261494]
[1760365521058,2.3648,4112.9,4112.8,0.0261494]
[1760365521259,5.46422225,4112.9,4112.8,0.2901494]
[1760365521652,3.09942225,4112.9,4112.3,3.2078]
[1760365521950,5.19487,4113.2,4112.3,3.2078]
[1760365521951,3.2588,4112.4,4112.3,3.2078]
[1760365522156,2.3648,4112.4,4112.3,3.4718]
[1760365522355,3.2588,4112.4,4112.3,3.2078]
[1760365522550,3.2588,4112.4,4112.3,3.4708]
[1760365522752,3.2588,4112.4,4112.3,3.20958962]
[1760365522960,3.2588,4112.4,4112.3,3.47258962]
[1760365523554,3.2588,4112.4,4112.3,3.20958962]
[1760365523761,6.47635554,4112.4,4112.3,3.47258962]
[1760365524759,6.47635554,4112.4,4112.3,0.26478962]
[1760365525551,6.47635554,4112.4,4111.2,3.45103503]
[1760365525552,0.894,4111.8,4111.2,3.45103503]
[1760365525753,3.2078,4111.4,4111.2,0.50623503]
[1760365525959,0.43751,4110.5,4110.1,0.43754]
[1760365526153,0.894,4110.6,4110.0,3.2078]
[1760365526356,0.894,4110.6,4110.1,0.70054]
[1760365526357,3.63809166,4110.4,4110.1,0.70054]
[1760365526562,5.56720964,4110.4,4110.3,0.43753]
[1760365526767,5.56720964,4110.4,4110.1,0.2658571]
[1760365526768,2.3648,4110.3,4110.1,0.2658571]
[1760365527060,3.19207938,4110.4,4110.2,0.43753]
[1760365527259,2.3648,4110.3,4110.2,0.43754]
[1760365527456,2.3648,4110.3,4110.2,0.70054]
[1760365527658,2.3648,4110.3,4110.2,0.43754]
[1760365528059,2.3648,4110.3,4110.2,0.70054]
[1760365528659,0.00183798,4110.4,4110.2,0.70054]
[1760365528858,0.00183798,4110.4,4110.2,2.16194]
[1760365529053,0.00183798,4110.4,4110.2,0.70054]
[1760365529254,0.00183798,4110.4,4110.2,0.43754]
[1760365529461,0.00183798,4110.4,4110.3,0.263]
[1760365529861,2.3648,4110.3,4110.2,0.43754]
[1760365530067,2.3648,4110.2,4110.1,0.4404071]
[1760365530266,2.3648,4110.2,4110.1,0.2658571]
[1760365530762,0.00183798,4110.4,4110.2,0.43754]
[1760365530964,2.3648,4110.3,4110.1,0.0028571]
[1760365531266,5.51988614,4110.3,4110.2,0.263]
[1760365531464,2.3648,4110.3,4110.2,0.263]
[1760365531967,0.00183798,4110.4,4110.3,0.43753]
[1760365532162,0.00183798,4110.4,4110.3,1.89893]
[1760365532363,0.00183798,4110.4,4110.3,0.43753]
[1760365532766,2.3648,4111.5,4111.4,0.43741]
[1760365533066,2.3648,4111.5,4111.4,0.263]
[1760365533772,2.3678663,4111.5,4111.4,0.263]
[1760365534872,5.5726,4112.7,4112.5,0.43729]
[1760365535071,5.5726,4112.7,4112.6,0.262]
[1760365535273,2.3648,4112.7,4112.6,0.262]
[1760365535573,0.894,4111.8,4111.7,0.60330606]
[1760365535771,3.2616982,4111.8,4111.7,0.69938]
[1760365536162,6.89310991,4111.8,4111.6,6.06e-06]
[1760365536367,2.3648,4111.4,4111.3,0.262]
[1760365536670,5.46012605,4111.4,4111.3,0.262]
[1760365536865,5.46012605,4111.4,4110.9,0.43746]
[1760365536866,2.3648,4111.1,4110.9,0.43746]
[1760365537063,2.3648,4111.1,4111.0,0.262]
[1760365537470,5.46012605,4111.1,4111.0,0.262]
[1760365537671,2.3648,4111.1,4111.0,1.11565059]
[1760365537872,0.0028982,4111.8,4111.7,2.78968]
[1760365538169,0.0028982,4111.8,4111.7,6.25948]
[1760365538360,2.3648,4112.7,4112.6,0.43728]
[1760365538563,3.2078,4112.9,4112.8,0.43726]
[1760365538772,5.5726,4112.9,4112.8,0.43726]
[1760365538970,5.5726,4112.9,4112.8,2.14456118]
[1760365539278,4.2606937,4112.9,4112.8,0.43726]
[1760365539463,4.26257388,4112.9,4112.6,0.262]
[1760365539669,2.80209,4112.5,4112.4,2.13966535]
[1760365539863,5.07081486,4112.9,4112.2,3.4698]
[1760365540170,5.07081486,4112.9,4112.0,1.72582233]
[1760365540171,2.80206,4112.8,4112.7,1.72876412]
[1760365540474,2.80206,4112.8,4111.8,0.43737]
[1760365540475,2.3648,4111.9,4111.8,0.43737]
[1760365540772,2.3648,4111.9,4111.7,2.40166535]
[1760365540773,3.61959436,4111.9,4111.7,3.26622691]
[1760365540971,3.61959436,4111.9,4111.7,0.262]
[1760365541162,3.18222436,4111.9,4111.7,0.69937]
[1760365541365,0.43738,4111.7,4111.6,1.29684234]
[1760365541770,3.52912972,4111.7,4111.6,0.262]
[1760365542768,4.39134972,4111.7,4111.6,0.262]
[1760365542971,3.09174972,4111.7,4111.6,0.262]
[1760365543268,3.09174972,4111.7,4111.4,0.43741]
[1760365543269,1.2996,4111.6,4111.4,0.43741]
[1760365543571,0.43736,4111.9,4111.7,0.43737]
[1760365543771,3.2078,4112.2,4112.0,0.43734]
[1760365543971,3.2078,4112.2,4112.1,2.6143]
[1760365544271,3.5406762,4112.1,4111.6,3.2078]
[1760365544472,0.43734,4112.1,4111.9,0.43735]
[1760365544667,0.43735,4112.0,4111.2,2.57708535]
[1760365544872,0.4374,4111.6,4111.4,0.43741]
[1760365545069,0.43739,4111.6,4111.4,0.4374]
[1760365545271,1.2996,4111.8,4111.6,0.43738]
[1760365545465,3.2078,4112.2,4112.0,0.43734]
[1760365545777,3.2078,4112.2,4112.1,0.262]
[1760365546168,1.09319,4112.7,4111.8,2.92145286]
[1760365546476,0.43735,4112.0,4111.9,2.43314324]
[1760365546678,1.75065,4112.0,4111.9,2.43314324]
[1760365546876,4.87602328,4112.0,4111.9,0.262]
[1760365547078,1.75068,4111.7,4111.6,3.2078]
[1760365547274,3.12537328,4112.0,4111.6,3.2078]
[1760365547275,4.43597328,4112.0,4111.6,3.4698]
[1760365547479,0.43731,4112.4,4112.3,0.43731]
[1760365547778,4.91381474,4112.4,4112.3,0.262]
[1760365547978,1.3106,4111.8,4111.6,3.2078]
[1760365548179,0.43743,4111.3,4111.1,5.0925961]
[1760365548372,0.43743,4111.3,4111.2,0.61384355]
[1760365548373,1.74803,4111.3,4111.2,0.61384355]
[1760365548569,1.46178,4110.7,4110.2,5.81648324]
[1760365548779,1.4618,4110.6,4110.4,0.43752]
[1760365548976,1.4618,4110.6,4110.1,0.0028571]
[1760365548977,0.43753,4110.3,4110.1,0.0028571]
[1760365549183,3.2078,4110.2,4110.1,0.0028571]
[1760365549372,6.38813643,4110.2,4110.1,0.0028571]
[1760365549975,3.2078,4110.2,4110.1,0.0028571]
[1760365550178,6.87622035,4110.2,4110.1,0.2648571]
[1760365550482,6.87622035,4110.2,4110.1,0.0028571]
[1760365550684,6.87622035,4110.2,4110.1,1.30786785]
[1760365551181,6.87622035,4110.2,4110.1,0.0028571]
[1760365551481,6.87622035,4110.2,4109.1,0.43765]
[1760365551482,0.4376,4109.6,4109.5,1.30501075]
[1760365551683,3.2078,4109.6,4109.5,2.3808]
[1760365551979,1.09363,4111.1,4109.4,0.43762]
[1760365551980,3.2078,4110.1,4110.0,2.3808]
[1760365552180,3.2078,4110.1,4110.0,0.262]
[1760365552382,6.33330983,4110.1,4110.0,0.0022732]
[1760365552576,0.4376,4109.6,4109.5,0.66662884]
[1760365552885,0.43761,4109.5,4109.4,0.65244042]
[1760365553077,0.43761,4109.5,4107.0,0.9603]
[1760365553078,0.43781,4107.7,4107.2,2.17114324]
[1760365553272,3.64561,4107.7,4107.3,0.262]
[1760365553478,3.17362156,4107.6,4107.5,2.3808]
[1760365553673,3.2078,4108.3,4108.2,0.9603]
[1760365553873,3.2078,4108.3,4108.2,3.6031]
[1760365554479,3.2078,4108.3,4108.1,0.43776]
[1760365554780,3.2078,4108.3,4108.2,3.6031]
[1760365555080,6.39690215,4108.3,4107.4,3.64563]
[1760365555284,3.2078,4107.7,4107.6,0.43781]
[1760365555673,6.39690215,4107.7,4107.6,0.43781]
[1760365555875,3.2078,4107.7,4107.6,4.04091]
[1760365556185,3.2078,4108.3,4108.0,2.3808]
[1760365556488,2.84687365,4110.9,4107.6,1.2223]
[1760365556489,3.2078,4109.2,4109.1,0.43765]
[1760365556778,3.2078,4109.2,4109.1,2.81845]
[1760365556978,6.32033104,4109.2,4109.1,2.81845]
[1760365557176,3.2078,4109.8,4109.6,0.43759]
[1760365557583,3.11253104,4109.7,4109.6,0.43759]
[1760365558183,3.11253104,4109.7,4109.5,0.262]
[1760365558374,3.11253104,4109.7,4108.8,0.9603]
[1760365558579,3.2078,4109.1,4109.0,0.43766]
[1760365558880,6.43346284,4109.1,4109.0,0.43766]
[1760365559080,6.43346284,4109.1,4108.9,0.262]
[1760365559385,6.87111284,4109.1,4108.7,0.262]
[1760365559779,6.87111284,4109.1,4109.0,2.3808]
[1760365559780,6.43346284,4109.1,4109.0,2.3808]
[1760365560188,0.43768,4108.9,4108.3,2.3808]
[1760365560487,0.4378,4107.8,4107.6,3.2078]
[1760365560687,0.4378,4107.8,4107.4,0.262]
[1760365560688,0.43783,4107.5,4107.4,0.262]
[1760365561083,3.9205951,4107.5,4107.3,0.0019789]
[1760365561479,0.43805,4105.4,4105.2,0.24359052]
[1760365561687,3.2078,4105.3,4105.2,0.24359052]
[1760365561885,6.4350326,4105.3,4105.2,0.24359052]
[1760365562384,0.00282941,4105.3,4105.2,3.58699111]
[1760365562893,9.41e-06,4105.3,4105.2,3.58699111]
[1760365563382,9.41e-06,4105.3,4105.2,3.84899111]
[1760365564489,3.2078,4107.8,4107.6,0.43781]
[1760365564693,3.2078,4108.3,4108.1,0.43775]
[1760365564986,6.44711571,4108.3,4108.1,0.43775]
[1760365565179,3.23931571,4109.3,4107.9,0.262]
[1760365565180,3.2078,4108.7,4108.0,2.3808]
[1760365565381,3.20993118,4108.7,4108.0,2.38352317]
[1760365565580,6.44711571,4108.2,4108.1,0.262]
[1760365565781,3.20993118,4108.7,4108.1,0.262]
[1760365565983,3.20993118,4108.7,4108.5,0.43771]
[1760365566293,0.00213118,4108.7,4108.6,2.6428]
[1760365567497,0.43748,4110.7,4110.0,0.43755]
[1760365567695,3.64528,4110.8,4109.8,0.262]
[1760365567892,2.55730063,4110.1,4110.0,2.81835]
[1760365568191,3.2078,4110.2,4109.5,5.5886]
[1760365568392,3.60025063,4110.7,4110.0,0.262]
[1760365568587,0.00203944,4110.2,4110.1,5.5886]
[1760365569486,3.10404857,4110.2,4110.1,5.8506]
[1760365569681,0.00203944,4110.2,4110.1,5.8506]
[1760365570285,0.00203944,4110.2,4110.1,5.5886]
[1760365570495,0.00203944,4110.2,4110.1,2.6428]
[1760365571292,3.2078,4111.2,4110.6,2.3808]
[1760365571493,3.2078,4111.2,4111.1,0.43744]
[1760365571795,3.2078,4111.2,4111.1,3.08024]
[1760365572000,0.43737,4111.8,4111.7,0.43737]
[1760365572001,3.2078,4111.8,4111.7,0.43737]
[1760365572201,3.21019519,4111.8,4111.7,0.43909149]
[1760365572390,3.21019519,4111.8,4111.7,2.81989149]
[1760365572901,6.38660973,4111.8,4111.7,0.00172149]
[1760365573296,0.43747,4110.9,4109.9,5.5886]
[1760365573492,0.43746,4111.0,4110.0,0.262]
[1760365573798,0.43746,4111.0,4109.9,6.68251]
[1760365573799,6.38421454,4110.8,4110.2,2.3808]
[1760365573993,3.12808291,4110.9,4110.6,2.3808]
[1760365574191,3.12808291,4111.2,4110.8,2.3808]
[1760365574397,3.21019519,4111.8,4111.1,3.3411]
[1760365574688,3.21019519,4111.8,4111.7,2.3808]
[1760365574895,3.64756519,4111.8,4111.7,2.6428]
[1760365575091,3.64756519,4111.8,4111.7,0.262]
[1760365575486,3.21019519,4111.8,4111.7,3.02448]
[1760365575701,3.21019519,4111.8,4111.7,2.5871]
[1760365575903,3.21019519,4111.8,4111.7,0.262]
[1760365576195,6.42161449,4111.8,4111.7,0.262]
[1760365576388,3.64756519,4111.8,4111.7,2.5871]
[1760365576587,0.00239519,4111.8,4111.7,2.5871]
[1760365577191,0.43976519,4111.8,4111.6,0.43738]
[1760365577498,3.2078,4111.7,4111.6,0.262]
[1760365577692,3.64518,4111.7,4111.6,0.262]
[1760365577892,6.78019149,4111.7,4111.6,0.262]
[1760365578698,6.34281149,4111.7,4110.9,2.3251]
[1760365578998,0.43741,4111.4,4111.2,2.3251]
[1760365579195,0.43742,4111.3,4111.2,2.3251]
[1760365579895,6.34281149,4111.7,4111.2,2.3251]
[1760365579896,3.13501149,4111.7,4111.6,2.3251]
[1760365580193,0.00239519,4111.8,4111.6,2.3251]
[1760365580194,0.00239519,4111.8,4111.7,2.76248]
[1760365580399,0.00239519,4111.8,4111.7,2.3251]
[1760365580698,0.43976519,4111.8,4111.6,0.69938]
[1760365580893,0.43976519,4111.8,4111.2,3.2078]
[1760365580894,0.43742,4111.4,4111.2,0.43742]
[1760365581401,0.43741,4111.4,4111.3,0.262]
[1760365581592,0.43746,4111.0,4110.8,0.002551]
[1760365581793,0.43754,4110.2,4109.6,5.5329]
[1760365581989,0.43753,4110.3,4110.1,0.43754]
[1760365582186,3.2078,4110.4,4110.3,0.43753]
[1760365582594,3.2078,4110.9,4110.7,0.43747]
[1760365582796,1.09338,4112.0,4110.9,0.43746]
[1760365582797,0.43745,4111.1,4110.9,0.43746]
[1760365582993,0.43746,4110.9,4110.7,2.32815581]
[1760365583194,0.43749,4110.7,4109.7,0.43758]
[1760365583393,3.2078,4110.3,4109.8,0.262]
[1760365583796,0.43757,4110.0,4109.8,0.262]
[1760365584100,0.43757,4110.0,4109.8,0.69958]
[1760365584300,0.43757,4110.0,4109.8,0.70271408]
[1760365584498,0.43757,4110.0,4109.8,0.26513408]
[1760365584688,0.43757,4110.0,4109.8,0.70270408]
[1760365584894,0.43757,4110.0,4109.8,0.26513408]
[1760365585198,3.15226994,4110.2,4109.9,2.3251]
[1760365585594,0.43757,4109.9,4109.8,0.00313408]
[1760365585792,3.58980994,4110.2,4109.8,0.26513408]
[1760365586096,3.15226994,4110.2,4110.0,2.3251]
[1760365586303,3.15226994,4110.2,4110.1,2.3251]
[1760365586697,0.43742,4111.3,4111.1,0.43743]
[1760365586897,3.6452,4111.5,4111.3,0.43742]
[1760365587196,0.43742,4111.3,4111.1,0.69943]
[1760365587391,3.20419075,4111.4,4111.3,2.3251]
[1760365587596,3.2078,4111.5,4111.4,0.43741]
[1760365587796,3.2078,4111.5,4111.4,2.76251]
[1760365588194,6.80814582,4111.5,4111.2,0.43743]
[1760365588395,6.37074582,4111.5,4111.4,0.262]
[1760365588593,6.37074582,4111.5,4111.4,2.5871]
[1760365588799,6.37074582,4111.5,4111.4,0.262]
[1760365589104,0.43976519,4111.8,4111.4,0.262]
[1760365589299,0.43976519,4111.8,4111.7,2.3251]
[1760365589300,0.00239519,4111.8,4111.7,2.3251]
[1760365589701,3.2078,4113.1,4111.9,2.3251]
[1760365589905,3.2078,4113.1,4113.0,3.69254]
[1760365590198,3.2078,4113.1,4113.0,0.69924]
[1760365590405,3.2078,4113.1,4113.0,3.95454]
[1760365590598,3.23184194,4113.1,4113.0,0.262]
[1760365590899,0.00181025,4113.1,4113.0,2.58982916]
[1760365592199,3.2078,4113.6,4113.1,1.09308]
[1760365592404,3.2078,4113.6,4113.5,2.76228]
[1760365592905,3.2078,4113.6,4113.5,3.02428]
[1760365593204,3.20957191,4113.6,4113.5,2.5871]
[1760365593501,3.20957191,4113.6,4113.0,0.00272916]
[1760365593502,0.43723,4113.1,4113.0,0.00272916]
[1760365593697,0.43721,4113.3,4113.0,1.63215916]
[1760365593897,0.43721,4113.3,4113.1,2.3251]
[1760365594201,0.43721,4113.3,4113.2,0.262]
[1760365594401,0.43721,4113.3,4113.1,2.3251]
[1760365594597,0.43723,4113.1,4113.0,0.00272916]
[1760365594802,3.64503,4113.1,4113.0,0.26472916]
[1760365594999,6.75865742,4113.1,4113.0,0.26472916]
[1760365595197,6.75865742,4113.1,4112.0,3.64514]
[1760365595198,0.43733,4112.2,4112.0,3.64514]
[1760365595401,1.09311,4113.0,4112.0,3.64514]
[1760365595402,0.43731,4112.4,4112.1,0.69933]
[1760365595600,1.09311,4113.0,4112.1,0.262]
[1760365595802,3.11362742,4112.8,4112.6,2.3251]
[1760365596000,0.43729,4112.5,4112.4,0.9302]
[1760365596200,0.43729,4112.5,4112.4,1.19432395]
[1760365596704,0.43728,4112.7,4112.4,3.95672395]
[1760365597012,0.43728,4112.7,4112.5,2.76239]
[1760365597308,3.09785266,4113.0,4112.6,2.3251]
[1760365597605,3.09785266,4113.0,4112.7,0.262]
[1760365598297,3.09785266,4113.0,4112.8,2.3251]
[1760365598502,0.00177191,4113.6,4113.0,0.43723]
[1760365598503,3.20957191,4113.6,4113.0,0.43723]
[1760365598702,3.20957191,4113.6,4113.1,0.262]
[1760365598896,3.20957191,4113.6,4113.1,2.5871]
[1760365598897,3.18381417,4113.5,4113.1,2.5871]
[1760365599097,3.18381417,4113.5,4112.4,3.25742395]
[1760365599298,3.18381417,4113.5,4112.5,0.262]
[1760365599299,3.2078,4112.8,4112.5,0.262]
[1760365599500,0.43727,4112.7,4112.5,0.262]
[1760365599698,0.43729,4112.5,4112.4,0.00212395]
[1760365599899,0.43742,4111.3,4111.1,0.86283261]
[1760365600098,3.2078,4111.9,4111.2,0.262]
[1760365600300,3.2078,4111.9,4111.3,2.3251]
[1760365600504,3.20874171,4111.8,4111.2,1.1922]
[1760365600703,0.43741,4111.4,4111.2,3.5173]
[1760365600907,0.43741,4111.4,4111.2,3.52029748]
[1760365601406,0.43741,4111.4,4111.3,2.3251]
[1760365601706,0.43739,4111.6,4111.4,2.3251]
[1760365601904,0.43739,4111.6,4111.5,2.5871]
[1760365602110,0.43742,4111.3,4111.2,3.25829748]
[1760365602410,3.20874171,4111.8,4111.2,3.95771748]
[1760365602804,0.43741,4111.4,4111.3,2.3251]
[1760365603205,0.43738,4111.7,4111.5,0.43739]
[1760365603406,0.4374,4111.5,4111.2,1.79603009]
[1760365603608,0.43741,4111.5,4111.3,0.262]
[1760365603800,0.43741,4111.4,4111.2,0.00299748]
[1760365604000,0.43741,4111.4,4111.3,0.262]
[1760365604204,0.43741,4111.4,4111.2,0.00299748]
[1760365604415,3.10505904,4111.3,4111.2,0.00299748]
[1760365604606,3.2078,4111.3,4111.2,0.00299748]
[1760365605108,6.36830563,4111.3,4111.2,0.00299748]
[1760365605311,3.2078,4111.3,4111.2,2.32809748]
[1760365605612,0.261,4112.2,4111.2,2.32809748]
[1760365605613,0.43741,4111.4,4111.3,2.1653]
[1760365605814,3.12114985,4111.3,4111.2,0.00299748]
[1760365606108,3.12114985,4111.4,4111.3,2.60272]
[1760365606314,3.2078,4112.0,4111.3,0.43741]
[1760365606514,3.2078,4112.0,4111.3,1.09355]
[1760365606705,3.2078,4112.0,4111.9,2.1653]
[1760365606910,3.2078,4112.0,4111.9,2.4263]
[1760365607223,1.09302,4113.4,4111.9,2.4263]
[1760365607224,3.2078,4112.6,4112.5,0.43729]
[1760365607512,1.29535016,4114.7,4112.5,0.43729]
[1760365607513,3.2078,4113.1,4113.0,2.1653]
[1760365607712,3.2078,4113.1,4113.0,2.4263]
[1760365607913,3.20957191,4113.6,4113.5,2.60248]
[1760365608212,0.00177191,4113.6,4113.5,2.86348]
[1760365608607,3.2078,4114.2,4113.5,2.4263]
[1760365608911,0.43706,4114.7,4114.1,5.3731]
[1760365609108,3.2078,4115.2,4114.9,2.1653]
[1760365609312,3.2078,4115.2,4114.8,0.43704]
[1760365609313,0.43701,4115.1,4115.0,0.261]
[1760365609616,0.43709,4114.5,4113.7,3.02813261]
[1760365609808,3.64822758,4115.1,4115.0,2.16775673]
[1760365610007,3.64822758,4115.1,4115.0,2.42875673]
[1760365610217,3.64822758,4115.1,4115.0,0.26345673]
[1760365610417,0.00200576,4115.1,4115.0,2.42875673]
[1760365610711,0.00200576,4115.1,4115.0,0.26345673]
[1760365610913,3.1058788,4115.1,4115.0,0.00245673]
[1760365611315,1.09258,4115.0,4113.8,2.1653]
[1760365611519,0.43714,4114.0,4113.9,0.261]
[1760365611710,3.2078,4114.1,4113.9,0.261]
[1760365611911,3.2078,4114.1,4113.7,2.3481]
[1760365612105,0.43716,4113.8,4113.6,0.9404]
[1760365612306,0.43716,4113.8,4113.7,0.261]
[1760365612813,3.62057124,4113.8,4113.6,0.00299566]
[1760365613010,3.62057124,4113.8,4113.7,0.261]
[1760365613210,3.62057124,4113.8,4113.7,2.6091]
[1760365613820,3.62057124,4113.8,4113.6,0.00299566]
[1760365614022,3.62057124,4113.8,4113.7,2.6091]
[1760365614314,0.43715,4113.9,4113.8,2.3481]
[1760365614618,0.43715,4113.9,4113.6,0.00299566]
[1760365614619,0.43716,4113.7,4113.6,0.00299566]
[1760365614914,3.62863894,4113.7,4113.6,0.00299566]
[1760365615313,3.62863894,4113.7,4112.4,0.86283261]
[1760365615314,0.43728,4112.6,4112.4,0.64967652]
[1760365615508,0.4373,4112.4,4112.1,0.261]
[1760365615712,6.39927894,4112.5,4112.1,0.261]
[1760365615920,3.59411655,4113.0,4112.4,3.2885]
[1760365616108,0.43726,4112.8,4112.6,2.78537]
[1760365616310,0.43727,4112.7,4112.6,0.00183112]
[1760365616509,0.43727,4112.7,4112.6,0.26283112]
[1760365616814,3.2078,4113.1,4112.8,0.43725]
[1760365616815,0.43724,4113.0,4112.8,0.43725]
[1760365617112,3.2078,4113.1,4112.8,2.3481]
[1760365617312,3.2078,4113.1,4112.6,0.26283112]
[1760365617622,3.2078,4113.1,4113.0,3.2885]
[1760365617815,3.2078,4113.8,4113.7,2.3481]
[1760365618123,3.2078,4113.8,4113.7,2.6091]
[1760365618320,3.2078,4113.8,4113.7,2.3481]
[1760365618514,3.2078,4113.8,4113.0,1.08838095]
[1760365618515,0.43721,4113.3,4113.0,1.08838095]
[1760365618713,0.4372,4113.4,4113.2,2.78531]
[1760365619022,0.4372,4113.4,4112.9,4.07063261]
[1760365619023,0.43724,4113.0,4112.9,0.65115095]
[1760365619218,0.43724,4113.0,4112.6,0.00183112]
[1760365619219,0.43726,4112.8,4112.6,0.00183112]
[1760365619424,3.2078,4112.7,4112.6,0.00183112]
[1760365619614,6.35961121,4112.7,4112.6,0.00183112]
[1760365620615,0.43737,4111.8,4111.7,0.261]
[1760365620819,1.09324,4112.5,4111.3,0.65115095]
[1760365620820,1.09339,4111.9,4111.3,0.65115095]
[1760365621027,0.43743,4111.2,4111.1,0.65115095]
[1760365621318,3.14626951,4111.2,4110.3,0.65115095]
[1760365621520,3.6453,4110.6,4110.4,2.6091]
[1760365621722,3.6453,4110.6,4110.5,2.3481]
[1760365621723,3.64844044,4110.6,4110.5,2.3481]
[1760365622022,3.10773926,4110.5,4110.4,0.00198515]
[1760365622226,3.64844044,4110.6,4110.4,0.26298515]
[1760365622227,6.7561797,4110.6,4110.4,0.26298515]
[1760365622426,3.64844044,4110.6,4110.4,0.00198515]
[1760365622727,3.10773926,4110.5,4110.4,0.00198515]
[1760365624315,3.36873926,4110.5,4110.4,0.00198515]
[1760365624524,0.43761,4109.5,4109.4,0.261]
[1760365624721,3.64541,4109.5,4109.4,0.261]
[1760365624926,6.8476163,4109.5,4109.4,0.261]
[1760365625130,3.2078,4110.1,4109.4,3.04672]
[1760365625427,3.16940533,4110.0,4109.5,0.261]
[1760365625630,0.43764,4109.3,4109.0,0.43766]
[1760365625924,0.43767,4108.9,4108.7,3.85895095]
[1760365626118,0.43767,4109.0,4108.7,0.261]
[1760365626326,0.43774,4108.3,4108.1,0.65115095]
[1760365626620,3.4688,4109.1,4107.9,0.86283261]
[1760365626621,3.2078,4108.2,4108.0,2.3481]
[1760365626828,0.43779,4107.8,4107.4,0.65115095]
[1760365627024,0.43777,4108.1,4107.7,0.4378]
[1760365627226,0.43778,4107.9,4107.6,2.3481]
[1760365627423,0.4378,4107.8,4107.6,2.3481]
[1760365627633,3.66650487,4107.8,4107.6,2.3481]
[1760365627828,3.64555,4108.2,4107.5,0.261]
[1760365628037,3.2078,4108.2,4108.0,0.43777]
[1760365628239,0.261,4109.2,4109.0,0.43766]
[1760365628431,0.43767,4109.0,4108.7,0.43769]
[1760365628737,3.1735401,4108.9,4108.8,0.261]
[1760365628928,3.1735401,4108.9,4108.8,2.6091]
[1760365629133,3.1735401,4108.9,4108.3,0.43773]
[1760365629338,3.2078,4108.5,4108.4,0.261]
[1760365629535,3.2078,4108.5,4107.6,3.2885]
[1760365629835,3.2078,4107.9,4107.7,0.6988]
[1760365630030,3.2078,4108.4,4107.8,2.3481]
[1760365630427,3.11586485,4108.3,4108.2,0.43774]
[1760365630632,3.11586485,4108.3,4108.2,0.69874]
[1760365631139,3.11586485,4108.3,4108.2,0.261]
[1760365631633,3.11586485,4108.3,4108.2,2.6091]